bitfinex/quotes_BTCUSD_20251215
["timestamp","ask_amount","ask_price","bid_price","bid_amount"]
[1765790375712,0.01112334,89901.0,89898.0,0.01112371]
[1765790376071,0.23458917,89902.0,89899.0,0.23359547]
[1765790376072,0.001,89902.0,89899.0,0.23359547]
[1765790376602,0.01112297,89904.0,89900.0,0.22246694]
[1765790376783,0.001,89901.0,89900.0,0.23359041]
[1765790377389,0.01112309,89903.0,89900.0,0.23359041]
[1765790377814,0.234584,89904.0,89901.0,0.01112334]
[1765790377815,0.001,89904.0,89901.0,0.01112334]
[1765790378023,0.22346097,89904.0,89900.0,0.23359041]
[1765790378540,0.01112309,89903.0,89900.0,0.01112347]
[1765790379345,0.001,89903.0,89900.0,0.01112347]
[1765790379725,0.001,89903.0,89901.0,0.03502]
[1765790379941,0.001,89903.0,89901.0,0.25748496]
[1765790380138,0.001,89903.0,89902.0,0.02264]
[1765790380334,0.001,89903.0,89902.0,0.03765]
[1765790380581,0.01112285,89905.0,89902.0,0.03765]
[1765790380745,0.0111226,89907.0,89903.0,0.23358507]
[1765790380940,0.30182334,89908.0,89906.0,0.01238]
[1765790381149,0.30182334,89908.0,89906.0,0.03502]
[1765790381350,0.30182334,89908.0,89906.0,0.01238]
[1765790381754,0.30182334,89908.0,89906.0,0.25747453]
[1765790381977,0.2907,89911.0,89908.0,0.01112248]
[1765790382174,0.03491667,89923.0,89918.0,0.22242288]
[1765790382175,0.01136091,89922.0,89918.0,0.22242288]
[1765790382384,0.00024017,89922.0,89919.0,0.01112112]
[1765790382585,0.01136091,89922.0,89919.0,0.03502]
[1765790382807,0.2337781,89922.0,89919.0,0.03502]
[1765790383164,0.2907,89921.0,89919.0,0.01238]
[1765790383886,0.2907,89921.0,89920.0,0.02264]
[1765790384221,0.01136091,89922.0,89919.0,0.01238]
[1765790384434,0.001,89921.0,89919.0,0.01238]
[1765790385574,0.2917,89921.0,89919.0,0.01238]
[1765790385786,0.2337776,89922.0,89919.0,0.01238]
[1765790385787,0.00024017,89922.0,89920.0,0.26006992]
[1765790385957,0.00024017,89922.0,89921.0,0.12623229]
[1765790386170,0.00024017,89922.0,89921.0,0.15048516]
[1765790386886,0.00024017,89922.0,89921.0,0.03926287]
[1765790387691,0.00124017,89922.0,89921.0,0.03926287]
[1765790388533,0.00124017,89922.0,89921.0,0.16804516]
[1765790388744,0.00124017,89922.0,89921.0,0.05682287]
[1765790388882,0.00124017,89922.0,89921.0,0.03418287]
[1765790389488,0.00124017,89922.0,89921.0,0.16804516]
[1765790391063,0.00124017,89922.0,89921.0,0.01917287]
[1765790399460,0.00124017,89922.0,89921.0,0.00161287]
[1765790405489,0.00124017,89922.0,89921.0,0.05468287]
[1765790405708,0.00124017,89922.0,89921.0,0.16590516]
[1765790406116,0.00124017,89922.0,89921.0,0.05468287]
[1765790406432,0.00124017,89922.0,89921.0,0.03038287]
[1765790407579,0.00124017,89922.0,89921.0,0.00161287]
[1765790426571,0.00124017,89922.0,89921.0,0.02385461]
[1765790429344,0.00118115,89922.0,89921.0,0.02385461]
[1765790429545,0.00118115,89922.0,89921.0,0.00161287]
[1765790432277,0.00118115,89922.0,89921.0,0.02385461]
[1765790433340,0.00118115,89922.0,89921.0,0.05098461]
[1765790433594,0.00118115,89922.0,89921.0,0.07365461]
[1765790433897,0.00118115,89922.0,89921.0,0.05098461]
[1765790434119,0.00118115,89922.0,89921.0,0.02874287]
[1765790435142,0.00118115,89922.0,89921.0,0.22403032]
[1765790441062,0.00118115,89922.0,89921.0,0.23537032]
[1765790441281,0.00118115,89922.0,89921.0,0.27383032]
[1765790441474,0.00118115,89922.0,89921.0,0.25116032]
[1765790441626,0.00118115,89922.0,89921.0,0.23537032]
[1765790446298,0.00118115,89922.0,89917.0,0.05994213]
[1765790446510,0.23332487,89918.0,89912.0,0.01112198]
[1765790446675,0.01112136,89917.0,89914.0,0.01112173]
[1765790447059,0.01112136,89917.0,89914.0,0.23355524]
[1765790447262,0.01112099,89920.0,89917.0,0.01112136]
[1765790447382,0.01230189,89922.0,89918.0,0.23354611]
[1765790447586,0.01230189,89922.0,89919.0,0.01112112]
[1765790449018,0.01130189,89922.0,89919.0,0.01112112]
[1765790450200,0.01230189,89922.0,89919.0,0.01112112]
[1765790451011,0.23471871,89922.0,89918.0,0.01112124]
[1765790451558,0.22243394,89915.0,89910.0,0.05994213]
[1765790451780,0.23356362,89912.0,89908.0,0.02246248]
[1765790452399,0.01112198,89912.0,89909.0,0.02267]
[1765790452859,0.01112198,89912.0,89907.0,0.23357258]
[1765790452860,0.0111221,89911.0,89907.0,0.0111226]
[1765790453068,0.2335689,89910.0,89908.0,0.003]
[1765790453277,0.0220221,89911.0,89908.0,0.006]
[1765790453487,0.0220221,89911.0,89908.0,0.003]
[1765790453660,0.0220221,89911.0,89907.0,0.0111226]
[1765790453870,0.0220221,89911.0,89908.0,0.01112248]
[1765790455011,0.001,89912.0,89910.0,0.22244466]
[1765790455232,0.01112161,89915.0,89912.0,0.01112198]
[1765790457271,0.01212161,89915.0,89912.0,0.01112198]
[1765790457660,0.001,89915.0,89912.0,0.01112198]
[1765790459216,0.01212161,89915.0,89912.0,0.01112198]
[1765790459610,0.01212161,89915.0,89911.0,0.22244015]
[1765790459611,0.01112173,89914.0,89911.0,0.22244015]
[1765790459871,0.01112173,89914.0,89911.0,0.23356225]
[1765790460435,0.01112173,89914.0,89911.0,0.0111221]
[1765790460870,0.001,89915.0,89912.0,0.01112198]
[1765790461455,0.01112149,89916.0,89912.0,0.01112198]
[1765790461788,0.001,89914.0,89912.0,0.01112198]
[1765790462286,0.01112161,89915.0,89912.0,0.01112198]
[1765790463211,0.2907,89921.0,89913.0,0.01112186]
[1765790463401,0.00018115,89922.0,89921.0,0.02771]
[1765790463601,0.00018115,89922.0,89921.0,0.05429287]
[1765790466268,0.00118115,89922.0,89921.0,0.05429287]
[1765790470585,0.00118115,89922.0,89921.0,0.1877569]
[1765790472814,0.00118115,89922.0,89921.0,0.24769903]
[1765790473030,0.00118115,89922.0,89921.0,0.22545729]
[1765790473452,0.00118115,89922.0,89921.0,0.16551516]
[1765790473656,0.00118115,89922.0,89921.0,0.1877569]
[1765790478840,0.00118115,89922.0,89921.0,0.19887567]
[1765790489188,0.00118115,89922.0,89921.0,0.17663393]
[1765790489416,0.00118115,89922.0,89921.0,0.19887567]
[1765790491992,0.00118115,89922.0,89921.0,0.08765338]
[1765790492717,0.00118115,89922.0,89921.0,0.14759551]
[1765790493286,0.00118115,89922.0,89921.0,0.08765338]
[1765790494754,0.00111771,89922.0,89921.0,0.08765338]
[1765790495391,0.00111771,89922.0,89921.0,0.19887567]
[1765790496527,0.00111771,89922.0,89921.0,0.24889406]
[1765790496727,0.00111771,89922.0,89921.0,0.22665232]
[1765790545128,0.00011771,89922.0,89921.0,0.22665232]
[1765790545477,0.00011771,89922.0,89921.0,0.23465232]
[1765790545868,0.00011771,89922.0,89921.0,0.24265232]
[1765790573335,0.00011771,89922.0,89921.0,0.13143003]
[1765790573744,0.00011771,89922.0,89921.0,0.02873164]
[1765790574194,0.00011771,89922.0,89921.0,0.01761287]
[1765790574403,0.01101771,89922.0,89921.0,0.01761287]
[1765790574611,0.01101771,89922.0,89921.0,0.00961287]
[1765790574816,0.01101771,89922.0,89921.0,0.00161287]
[1765790574996,0.02291771,89922.0,89921.0,0.00161287]
[1765790575570,0.02291771,89922.0,89919.0,0.1484]
[1765790575571,0.03403845,89922.0,89919.0,0.1484]
[1765790575770,0.23331992,89920.0,89919.0,0.1484]
[1765790576001,0.01112272,89906.0,89903.0,0.02291771]
[1765790576199,0.22246198,89903.0,89897.0,0.01112384]
[1765790576438,0.01112309,89903.0,89898.0,0.23359792]
[1765790576589,0.01752,89902.0,89900.0,0.01112347]
[1765790576789,0.01752,89902.0,89900.0,0.23359134]
[1765790576996,0.0109,89901.0,89900.0,0.23359134]
[1765790577397,0.0218,89901.0,89900.0,0.01112347]
[1765790577829,0.0218,89901.0,89900.0,0.22246941]
[1765790578229,0.0218,89901.0,89900.0,0.24246941]
[1765790581676,0.0218,89901.0,89900.0,0.02]
[1765790581876,0.24426693,89901.0,89900.0,0.02]
[1765790584643,0.0218,89901.0,89900.0,0.02]
[1765790584842,0.24426693,89901.0,89900.0,0.02]
[1765790585211,0.27767887,89901.0,89900.0,0.02]
[1765790586144,0.05521194,89901.0,89900.0,0.02]
[1765790586596,0.04431194,89901.0,89900.0,0.02]
[1765790586997,0.04431194,89901.0,89900.0,0.01]
[1765790587235,0.03341194,89901.0,89900.0,0.01]
[1765790587559,0.03341194,89901.0,89900.0,0.008]
[1765790587895,0.03341194,89901.0,89900.0,0.017]
[1765790588307,0.03341194,89901.0,89900.0,0.008]
[1765790588945,0.0109,89904.0,89902.0,0.22246214]
[1765790590533,0.0119,89904.0,89902.0,0.22246214]
[1765790591325,0.0109,89903.0,89902.0,0.22246214]
[1765790592852,0.0119,89903.0,89902.0,0.22246214]
[1765790593291,0.001,89903.0,89901.0,0.01112334]
[1765790593890,0.001,89903.0,89902.0,0.22246446]
[1765790594314,0.02202223,89910.0,89907.0,0.23357424]
[1765790594718,0.0109,89908.0,89907.0,0.23357424]
[1765790596879,0.0119,89908.0,89907.0,0.23357424]
[1765790597441,0.001,89908.0,89907.0,0.23357424]
[1765790597652,0.001,89908.0,89907.0,0.0111226]
[1765790598075,0.0119,89908.0,89907.0,0.0111226]
[1765790598254,0.0228,89908.0,89907.0,0.0111226]
[1765790598925,0.0228,89908.0,89905.0,0.01112285]
[1765790599135,0.01112272,89906.0,89902.0,0.01112322]
[1765790599371,0.0329226,89907.0,89904.0,0.01112297]
[1765790599572,0.0220226,89907.0,89904.0,0.01112297]
[1765790599958,0.0109,89906.0,89904.0,0.01112297]
[1765790600158,0.0109,89906.0,89905.0,0.22245703]
[1765790600355,0.0109,89906.0,89904.0,0.01112297]
[1765790600720,0.0109,89906.0,89904.0,0.23358026]
[1765790601235,0.01112235,89909.0,89905.0,0.23357825]
[1765790601439,0.0109,89908.0,89905.0,0.23357825]
[1765790601662,0.11124003,89918.0,89905.0,0.23357825]
[1765790601663,0.3016,89915.0,89909.0,0.01112235]
[1765790601943,0.01112099,89920.0,89909.0,0.01112235]
[1765790601944,0.2907,89919.0,89918.0,0.23354562]
[1765790602139,0.01123845,89922.0,89918.0,0.23354562]
[1765790602322,0.01112087,89921.0,89917.0,0.01112136]
[1765790602751,0.02202124,89918.0,89913.0,0.23355743]
[1765790603003,0.0109,89917.0,89914.0,0.22243302]
[1765790603317,0.0109,89917.0,89915.0,0.2335515]
[1765790604509,0.0218,89916.0,89915.0,0.01112161]
[1765790605088,0.0218,89916.0,89914.0,0.01112173]
[1765790605373,0.0109,89915.0,89914.0,0.01112173]
[1765790605827,0.0109,89915.0,89913.0,0.01112186]
[1765790606710,0.0109,89915.0,89913.0,0.23355703]
[1765790607257,0.0119,89915.0,89913.0,0.23355682]
[1765790609112,0.0119,89915.0,89914.0,0.22243477]
[1765790609928,0.0109,89915.0,89913.0,0.23355747]
[1765790610359,0.0119,89915.0,89913.0,0.23355747]
[1765790611610,0.0109,89915.0,89913.0,0.23355747]
[1765790611820,0.0119,89915.0,89913.0,0.23355747]
[1765790613994,0.0218,89914.0,89913.0,0.01112186]
[1765790614843,0.0218,89914.0,89911.0,0.0111221]
[1765790615136,0.0109,89913.0,89912.0,0.01112198]
[1765790615777,0.0218,89913.0,89912.0,0.01112198]
[1765790617450,0.0109,89913.0,89912.0,0.01112198]
[1765790617580,0.0218,89913.0,89912.0,0.01112198]
[1765790617986,0.01112124,89918.0,89915.0,0.23355144]
[1765790618224,0.01112112,89919.0,89916.0,0.01112149]
[1765790618463,0.02202112,89919.0,89916.0,0.23355113]
[1765790618669,0.0109,89917.0,89915.0,0.01112161]
[1765790618834,0.0109,89916.0,89915.0,0.01112161]
[1765790620559,0.02202149,89916.0,89912.0,0.23355962]
[1765790620776,0.0109,89915.0,89912.0,0.23355962]
[1765790621194,0.0218,89915.0,89912.0,0.23355962]
[1765790621670,0.0218,89915.0,89914.0,0.22243477]
[1765790621879,0.0218,89915.0,89912.0,0.23355962]
[1765790622313,0.0228,89915.0,89912.0,0.23355962]
[1765790622930,0.0228,89915.0,89913.0,0.22243549]
[1765790624070,0.0218,89915.0,89913.0,0.22243549]
[1765790624490,0.0228,89915.0,89913.0,0.22243535]
[1765790624895,0.0228,89915.0,89912.0,0.23355962]
[1765790625111,0.0228,89915.0,89913.0,0.22243552]
[1765790625785,0.0218,89915.0,89913.0,0.22243552]
[1765790626201,0.0119,89915.0,89913.0,0.22243552]
[1765790626572,0.0119,89915.0,89912.0,0.23355962]
[1765790626789,0.0119,89915.0,89913.0,0.22243522]
[1765790627494,0.0109,89915.0,89913.0,0.22243522]
[1765790627717,0.0119,89915.0,89912.0,0.23355962]
[1765790628250,0.0119,89915.0,89914.0,0.22243477]
[1765790628453,0.0109,89915.0,89912.0,0.23355962]
[1765790628871,0.0119,89915.0,89912.0,0.23355962]
[1765790629106,0.0119,89915.0,89914.0,0.22243477]
[1765790629574,0.001,89915.0,89914.0,0.22243477]
[1765790630137,0.001,89915.0,89914.0,0.29464764]
[1765790630310,0.02201901,89936.0,89921.0,0.22241745]
[1765790630490,0.01111914,89935.0,89921.0,0.27711032]
[1765790630901,0.02201901,89936.0,89921.0,0.27711032]
[1765790631531,0.02201901,89936.0,89921.0,0.29511032]
[1765790631737,0.0109,89936.0,89921.0,0.29511032]
[1765790631938,0.02201901,89936.0,89921.0,0.28711032]
[1765790632168,0.02201901,89936.0,89921.0,0.29611032]
[1765790632806,0.0109,89936.0,89921.0,0.29611032]
[1765790633570,0.02201901,89936.0,89921.0,0.29611032]
[1765790633797,0.0109,89936.0,89921.0,0.29611032]
[1765790634618,0.01111926,89934.0,89921.0,0.27167032]
[1765790634816,0.01111914,89935.0,89921.0,0.29611032]
[1765790635018,0.01111926,89934.0,89921.0,0.29611032]
[1765790636624,0.01111951,89932.0,89921.0,0.29611032]
[1765790636929,0.01111951,89932.0,89921.0,0.25518032]
[1765790637329,0.02201901,89936.0,89921.0,0.29611032]
[1765790637480,0.01111914,89935.0,89921.0,0.29611032]
[1765790638790,0.01111926,89934.0,89921.0,0.29611032]
[1765790640019,0.01111914,89935.0,89921.0,0.29611032]
[1765790641237,0.01111926,89934.0,89921.0,0.27167032]
[1765790641597,0.01111975,89930.0,89921.0,0.27167032]
[1765790641784,0.01111975,89930.0,89921.0,0.25518032]
[1765790642130,0.22240464,89927.0,89921.0,0.25518032]
[1765790642480,0.01112013,89927.0,89921.0,0.24303032]
[1765790643682,0.0109,89931.0,89921.0,0.24303032]
[1765790644009,0.24418249,89936.0,89921.0,0.27853032]
[1765790644130,0.24418249,89936.0,89921.0,0.29513032]
[1765790644357,0.01111914,89935.0,89921.0,0.29513032]
[1765790646449,0.03291901,89936.0,89921.0,0.29513032]
[1765790646661,0.0218,89936.0,89921.0,0.29513032]
[1765790646800,0.0109,89936.0,89921.0,0.29513032]
[1765790647738,0.02201901,89936.0,89921.0,0.29513032]
[1765790647944,0.0109,89936.0,89921.0,0.29513032]
[1765790648188,0.0109,89942.0,89921.0,0.34514871]
[1765790648357,0.0109,89942.0,89921.0,0.604771]
[1765790650549,0.0109,89942.0,89921.0,0.66475885]
[1765790652526,0.0109,89952.0,89921.0,0.604771]
[1765790652728,0.01111741,89949.0,89921.0,0.604771]
[1765790652906,0.01111716,89951.0,89921.0,0.604771]
[1765790653119,0.01111728,89950.0,89921.0,0.604771]
[1765790654355,0.01111716,89951.0,89921.0,0.604771]
[1765790655202,0.31271704,89952.0,89921.0,0.604771]
[1765790655414,0.01111716,89951.0,89921.0,0.604771]
[1765790656705,0.0109,89952.0,89921.0,0.604771]
[1765790656911,0.02201704,89952.0,89921.0,0.604771]
[1765790657574,0.0109,89952.0,89921.0,0.604771]
[1765790657781,0.0109,89952.0,89921.0,0.68469384]
[1765790658162,0.0109,89952.0,89921.0,0.604771]
[1765790658377,0.0109,89952.0,89921.0,0.61588779]
[1765790684444,0.0109,89951.0,89921.0,0.61588779]
[1765790688267,0.0109,89951.0,89921.0,0.71585401]
[1765790695550,0.0109,89952.0,89921.0,0.71585401]
[1765790695916,0.0109,89952.0,89921.0,0.61588779]
[1765790697203,0.0109,89952.0,89921.0,0.60688779]
[1765790697559,0.0109,89952.0,89921.0,0.60588779]
[1765790697765,0.0109,89952.0,89921.0,0.61588779]
[1765790698816,9.97e-06,89922.0,89921.0,0.90658779]
[1765790700554,9.97e-06,89922.0,89921.0,0.92410779]
[1765790701179,9.97e-06,89922.0,89921.0,0.90658779]
[1765790701353,9.97e-06,89922.0,89921.0,0.92410779]
[1765790701509,9.97e-06,89922.0,89921.0,0.30624711]
[1765790701722,9.97e-06,89922.0,89921.0,0.26055032]
[1765790703202,9.97e-06,89922.0,89921.0,0.31143494]
[1765790703593,9.97e-06,89922.0,89921.0,0.30943494]
[1765790703784,9.97e-06,89922.0,89921.0,0.34409494]
[1765790703947,9.97e-06,89922.0,89921.0,0.35601494]
[1765790704192,9.97e-06,89922.0,89921.0,0.29613032]
[1765790704403,9.97e-06,89922.0,89921.0,0.35601494]
[1765790704653,9.97e-06,89922.0,89921.0,0.33849494]
[1765790704792,9.97e-06,89922.0,89921.0,0.35601494]
[1765790705021,9.97e-06,89922.0,89921.0,0.33135494]
[1765790706153,9.97e-06,89922.0,89921.0,0.37151494]
[1765790706378,9.97e-06,89922.0,89921.0,0.31163032]
[1765790708070,9.97e-06,89922.0,89921.0,0.36164871]
[1765790708320,9.97e-06,89922.0,89921.0,0.472871]
[1765790708828,9.97e-06,89922.0,89921.0,0.763571]
[1765790709689,9.97e-06,89922.0,89921.0,0.745571]
[1765790709895,9.97e-06,89922.0,89921.0,0.756571]
[1765790710124,9.97e-06,89922.0,89921.0,0.765571]
[1765790713226,9.97e-06,89922.0,89921.0,0.913971]
[1765790714137,0.0109,89952.0,89951.0,0.22234327]
[1765790717132,0.0002,89958.0,89957.0,0.22232844]
[1765790717661,0.0111,89958.0,89957.0,0.22232844]
[1765790718023,0.0002,89958.0,89957.0,0.22232844]
[1765790718226,0.0002,89958.0,89957.0,0.28000844]
[1765790718923,0.0002,89958.0,89957.0,0.23984844]
[1765790720088,0.00128031,89958.0,89957.0,0.26450844]
[1765790720292,0.00128031,89958.0,89957.0,0.28000844]
[1765790721204,0.00128031,89958.0,89957.0,0.3316397]
[1765790721425,0.00128031,89958.0,89957.0,0.65104543]
[1765790721632,0.00128031,89958.0,89957.0,0.59570305]
[1765790722908,0.00128031,89958.0,89957.0,0.73801302]
[1765790723112,0.00128031,89958.0,89957.0,0.83373756]
[1765790723304,0.00128031,89958.0,89957.0,0.75401302]
[1765790723702,0.00128031,89958.0,89957.0,0.74701302]
[1765790723924,0.00128031,89958.0,89957.0,0.73801302]
[1765790724126,0.00128031,89958.0,89957.0,0.74801302]
[1765790724334,0.00128031,89958.0,89957.0,0.76001302]
[1765790726326,0.00128031,89958.0,89957.0,0.78740935]
[1765790727980,0.00128031,89958.0,89957.0,0.93579938]
[1765790732268,0.00128031,89958.0,89957.0,0.89088305]
[1765790732447,0.00128031,89958.0,89957.0,0.96790621]
[1765790734224,0.00166439,89958.0,89957.0,0.90840305]
[1765790742663,0.00166439,89958.0,89957.0,0.98812759]
[1765790743269,0.00166439,89958.0,89957.0,0.90840305]
[1765790745926,0.00166439,89958.0,89957.0,0.89088305]
[1765790746062,0.00166439,89958.0,89957.0,0.90840305]
[1765790747111,0.00166439,89958.0,89957.0,0.76001302]
[1765790748905,0.00166439,89958.0,89957.0,0.74249302]
[1765790749251,0.00166439,89958.0,89957.0,0.41929463]
[1765790749454,0.00166439,89958.0,89957.0,0.46931302]
[1765790750317,0.00166439,89958.0,89957.0,0.52708892]
[1765790750517,0.00166439,89958.0,89957.0,0.45631302]
[1765790750758,0.00166439,89958.0,89957.0,0.34509073]
[1765790751871,0.00166439,89958.0,89957.0,0.35509073]
[1765790754365,0.00166439,89958.0,89957.0,0.46631302]
[1765790754527,0.00166439,89958.0,89957.0,0.44879302]
[1765790754752,0.00166439,89958.0,89957.0,0.46631302]
[1765790766592,0.00166439,89958.0,89957.0,0.61470305]
[1765790770929,0.00166439,89958.0,89957.0,0.69451658]
[1765790771137,0.00166439,89958.0,89957.0,0.69451612]
[1765790771712,0.00166439,89958.0,89957.0,0.61470305]
[1765790775405,0.00166439,89958.0,89957.0,0.50348076]
[1765790775621,0.00166439,89958.0,89957.0,0.61470305]
[1765790780149,0.00166439,89958.0,89957.0,0.50348076]
[1765790780565,0.00166439,89958.0,89957.0,0.61470305]
[1765790803584,0.00166439,89958.0,89957.0,0.90540305]
[1765790804180,0.00166439,89958.0,89957.0,0.88788305]
[1765790804385,0.00166439,89958.0,89957.0,0.90540305]
[1765790805401,0.00166439,89958.0,89957.0,0.46631302]
[1765790805558,0.0002,89967.0,89966.0,0.67424688]
[1765790805736,0.0002,89967.0,89966.0,0.70365975]
[1765790806108,0.0002,89967.0,89966.0,0.72709975]
[1765790806281,0.0002,89967.0,89966.0,0.73154987]
[1765790806458,0.0002,89967.0,89966.0,0.74906987]
[1765790806660,0.0002,89967.0,89966.0,0.75706987]
[1765790806898,0.0002,89967.0,89966.0,0.76706987]
[1765790811117,0.00047,89967.0,89966.0,0.9154599]
[1765790813849,0.00047,89967.0,89966.0,0.8979399]
[1765790814089,0.00047,89967.0,89966.0,0.9154599]
[1765790820329,0.00047,89967.0,89966.0,0.80423761]
[1765790820532,0.01138,89967.0,89966.0,0.39314635]
[1765790820753,0.01138,89967.0,89966.0,0.40621623]
[1765790821133,0.01138,89967.0,89966.0,0.39821623]
[1765790821328,0.02229,89967.0,89966.0,0.39821623]
[1765790821510,0.01138,89967.0,89966.0,0.39821623]
[1765790821709,0.01138,89967.0,89966.0,0.38821623]
[1765790822083,0.00047,89967.0,89966.0,0.38821623]
[1765790822229,0.00047,89967.0,89966.0,0.49943852]
[1765790823214,0.00047,89967.0,89966.0,0.35104849]
[1765790828690,0.00047,89967.0,89966.0,0.33352849]
[1765790828895,0.00047,89967.0,89966.0,0.35104849]
[1765790831026,0.01138,89967.0,89966.0,0.35104849]
[1765790831230,0.02229,89967.0,89966.0,0.01091]
[1765790831463,0.02229,89967.0,89957.0,0.22232621]
[1765790831464,0.01111592,89961.0,89952.0,0.01111704]
[1765790831696,0.02182,89953.0,89952.0,0.2223408]
[1765790831930,0.02182,89953.0,89952.0,0.2398608]
[1765790831931,0.03273,89953.0,89952.0,0.2398608]
[1765790832171,0.02182,89953.0,89952.0,0.2398608]
[1765790832571,0.02182,89953.0,89952.0,0.2508608]
[1765790832775,0.02182,89953.0,89952.0,0.2598608]
[1765790833197,0.02182,89953.0,89952.0,0.2508608]
[1765790833510,0.02182,89953.0,89952.0,0.2588608]
[1765790833892,0.02182,89953.0,89952.0,0.2478608]
[1765790834217,0.02182,89953.0,89952.0,0.2578608]
[1765790834426,0.01091,89953.0,89952.0,0.2578608]
[1765790835910,0.03273,89953.0,89952.0,0.03552]
[1765790836454,0.02182,89953.0,89952.0,0.03552]
[1765790837443,0.02182,89953.0,89952.0,0.018]
[1765790837664,0.02182,89953.0,89952.0,0.03552]
[1765790838516,0.02182,89953.0,89952.0,0.01752]
[1765790838718,0.02182,89953.0,89952.0,0.01]
[1765790838942,0.02182,89953.0,89952.0,0.03552]
[1765790839677,0.02182,89953.0,89952.0,0.08553839]
[1765790841801,0.02182,89953.0,89952.0,0.06801839]
[1765790842042,0.03273,89953.0,89952.0,0.03552]
[1765790844404,0.03277,89953.0,89952.0,0.03552]
[1765790845983,0.02186,89953.0,89952.0,0.03552]
[1765790848398,0.02186,89953.0,89952.0,0.018]
[1765790848736,0.02186,89953.0,89952.0,0.03552]
[1765790849295,0.02186,89953.0,89952.0,0.11909058]
[1765790850998,0.01095,89953.0,89952.0,0.11909058]
[1765790851203,4e-05,89953.0,89952.0,0.23290592]
[1765790851402,4e-05,89953.0,89952.0,0.24385592]
[1765790851626,4e-05,89953.0,89952.0,0.22162184]
[1765790853598,0.00011514,89961.0,89959.0,0.05001839]
[1765790854217,0.00011514,89961.0,89959.0,0.38356418]
[1765790854359,0.00011514,89961.0,89960.0,0.16124068]
[1765790854556,0.00011514,89961.0,89960.0,0.20199355]
[1765790854963,0.00011514,89961.0,89960.0,0.20644458]
[1765790855418,0.00011514,89961.0,89960.0,0.09522229]
[1765790855619,0.00011514,89961.0,89960.0,0.20644458]
[1765790856228,0.00111514,89961.0,89960.0,0.20644458]
[1765790856633,0.00111514,89961.0,89960.0,0.22867668]
[1765790868940,0.00111514,89961.0,89960.0,0.20571668]
[1765790869326,0.00111514,89961.0,89960.0,0.18953668]
[1765790869611,0.00111514,89961.0,89960.0,0.21269668]
[1765790869789,0.00111514,89961.0,89960.0,0.07198942]
[1765790870393,0.00111514,89961.0,89960.0,0.18321171]
[1765790871637,0.00111514,89961.0,89960.0,0.20637171]
[1765790871885,0.00111514,89961.0,89960.0,0.18321171]
[1765790873327,0.00111514,89961.0,89960.0,0.22252171]
[1765790873690,0.00111514,89961.0,89960.0,0.19936171]
[1765790874942,0.00111514,89961.0,89960.0,0.18321171]
[1765790879452,0.00011514,89961.0,89960.0,0.18321171]
[1765790879656,0.00011514,89961.0,89960.0,0.20021171]
[1765790881064,0.00011514,89961.0,89960.0,0.26175381]
[1765790881242,0.00011514,89961.0,89960.0,0.23952171]
[1765790881878,0.00011514,89961.0,89960.0,0.21636171]
[1765790882047,0.00011514,89961.0,89960.0,0.18269171]
[1765790882267,0.00011514,89961.0,89960.0,0.20021171]
[1765790886583,0.00011514,89961.0,89960.0,0.19221171]
[1765790886837,0.00011514,89961.0,89960.0,0.18321171]
[1765790887931,0.00011514,89961.0,89960.0,0.07998942]
[1765790888467,0.00011514,89961.0,89960.0,0.08998942]
[1765790890797,0.00011514,89961.0,89960.0,0.07246942]
[1765790890995,0.00011514,89961.0,89960.0,0.08998942]
[1765790891962,0.00011514,89961.0,89960.0,0.08553839]
[1765790892566,0.02193514,89961.0,89960.0,0.08553839]
[1765790892821,0.02193514,89961.0,89960.0,0.06801839]
[1765790893930,0.02193514,89961.0,89960.0,0.06001839]
[1765790894230,0.02193514,89961.0,89960.0,0.06801839]
[1765790894432,0.02193514,89961.0,89960.0,0.05801839]
[1765790894859,0.02193514,89961.0,89960.0,0.06701839]
[1765790895094,0.02193514,89961.0,89960.0,0.017]
[1765790895294,0.09751436,89961.0,89960.0,0.017]
[1765790895780,0.1530844,89961.0,89960.0,0.017]
[1765790895936,0.07750518,89961.0,89960.0,0.017]
[1765790897397,0.07750518,89961.0,89945.0,0.23347531]
[1765790897398,0.01111716,89951.0,89947.0,0.01111765]
[1765790897628,0.01111741,89949.0,89946.0,0.01111778]
[1765790898043,0.02182,89947.0,89946.0,0.01111778]
[1765790898441,0.03273,89947.0,89946.0,0.01111778]
[1765790898826,0.03273,89947.0,89946.0,0.02211778]
[1765790899025,0.03273,89947.0,89946.0,0.01111778]
[1765790899245,0.03273,89947.0,89946.0,0.02111778]
[1765790899457,0.03273,89947.0,89946.0,0.03211778]
[1765790899999,0.01091,89954.0,89949.0,0.01111741]
[1765790900404,0.02182,89954.0,89949.0,0.01111741]
[1765790900685,0.01091,89950.0,89949.0,0.01111741]
[1765790900910,0.02182,89954.0,89951.0,0.01111716]
[1765790901375,0.01091,89954.0,89951.0,0.01111716]
[1765790901567,0.02182,89954.0,89951.0,0.01111716]
[1765790901984,0.02182,89954.0,89951.0,0.2334586]
[1765790902182,0.02182,89954.0,89951.0,0.2444586]
[1765790903182,0.01091,89952.0,89951.0,0.2444586]
[1765790903590,0.01091,89952.0,89951.0,0.2534586]
[1765790904157,0.02182,89952.0,89951.0,0.02211716]
[1765790904397,0.02182,89952.0,89951.0,0.01111716]
[1765790904622,0.02182,89952.0,89951.0,0.02011716]
[1765790904791,0.02182,89952.0,89951.0,0.03111716]
[1765790905042,0.01091,89952.0,89951.0,0.03111716]
[1765790909614,0.02182,89952.0,89951.0,0.02]
[1765790915577,0.01091,89952.0,89951.0,0.02]
[1765790917076,0.2441608,89952.0,89951.0,0.02]
[1765790918349,0.29973084,89952.0,89951.0,0.02]
[1765790918701,0.5348608,89952.0,89951.0,0.02]
[1765790918905,0.75181868,89952.0,89951.0,0.02]
[1765790920111,0.64610083,89952.0,89951.0,0.02]
[1765790921034,0.6794964,89952.0,89951.0,0.02]
[1765790922423,0.56825637,89952.0,89951.0,0.02]
[1765790922795,0.62382641,89952.0,89951.0,0.02]
[1765790937734,0.56825637,89952.0,89951.0,0.02]
[1765790940583,0.62382641,89952.0,89951.0,0.02]
[1765790941172,0.56825637,89952.0,89951.0,0.02]
[1765790941358,0.6794964,89952.0,89951.0,0.02]
[1765790942355,0.56825637,89952.0,89951.0,0.02]
[1765790943542,0.67876399,89952.0,89951.0,0.02]
[1765790943684,0.6794964,89952.0,89951.0,0.02]
[1765790944336,0.62382641,89952.0,89951.0,0.02]
[1765790948166,0.6794964,89952.0,89951.0,0.02]
[1765790950787,0.56825637,89952.0,89951.0,0.02]
[1765790951399,0.62382641,89952.0,89951.0,0.02]
[1765790951847,0.6794964,89952.0,89951.0,0.02]